bitfinex/quotes_ETHUSD_20240715
["timestamp","ask_amount","ask_price","bid_price","bid_amount"]
[1721029375743,0.55,3367.5,3367.1,0.17]
[1721029376440,0.55,3367.5,3367.4,1.7]
[1721029376629,0.55,3367.8,3367.4,1.7]
[1721029377147,7.34,3367.9,3367.4,1.7]
[1721029378464,0.55,3367.8,3367.4,1.7]
[1721029378623,0.55,3367.9,3367.5,0.17]
[1721029379170,0.55,3367.9,3367.6,0.0346594]
[1721029379320,0.55,3367.9,3367.5,0.17]
[1721029379722,0.55,3367.9,3367.6,0.0346594]
[1721029380215,0.55,3367.9,3367.5,0.17]
[1721029380621,0.55,3367.9,3367.6,0.22165717]
[1721029381159,0.55,3367.9,3367.4,1.7]
[1721029381474,0.55,3367.9,3367.5,0.03469901]
[1721029381950,0.55,3367.9,3367.4,1.7]
[1721029382630,0.55,3367.9,3367.5,0.03469901]
[1721029382839,0.3147,3367.9,3367.5,0.03469901]
[1721029384162,0.3147,3367.9,3367.5,0.20816891]
[1721029385498,0.55,3367.8,3367.5,0.26755395]
[1721029385721,0.55,3368.2,3367.8,1.7]
[1721029387115,7.34,3368.3,3367.9,0.05938332]
[1721029387276,7.34,3368.3,3368.2,1.7]
[1721029387602,2.426,3368.7,3368.2,1.91022412]
[1721029388571,0.005,3368.8,3368.2,1.91022412]
[1721029390068,0.005,3368.8,3368.6,1.7]
[1721029390288,0.005,3368.8,3368.7,0.03407669]
[1721029390488,0.005,3368.8,3368.6,1.7]
[1721029390800,0.005,3368.8,3368.7,0.20407669]
[1721029393243,0.005,3368.8,3368.7,0.03407669]
[1721029393414,2.4857,3368.8,3368.7,0.03407669]
[1721029393604,2.4857,3368.8,3368.2,1.7]
[1721029393803,0.55,3368.7,3368.2,1.7]
[1721029395239,0.55,3368.7,3368.3,0.05937011]
[1721029395457,0.55,3368.7,3368.4,0.47193701]
[1721029395755,0.005,3368.8,3368.6,1.7]
[1721029397607,0.005,3368.8,3368.7,0.05936171]
[1721029398322,0.005,3368.8,3368.6,1.7]
[1721029399545,0.005,3368.8,3368.6,1.75936124]
[1721029399724,0.005,3368.8,3368.7,0.22312983]
[1721029399922,1.54570824,3371.4,3370.0,30.0]
[1721029400165,1.85484989,3372.6,3370.0,30.0]
[1721029400166,0.62022315,3372.9,3372.6,6.83711999]
[1721029400379,0.62022315,3373.0,3372.6,58.3376808]
[1721029400563,0.00707368,3373.3,3372.6,4.16855999]
[1721029400869,0.00707368,3373.3,3372.5,4.66]
[1721029400870,0.00707368,3373.3,3372.5,2.96]
[1721029401377,0.00707368,3373.3,3372.6,5.9301]
[1721029401679,0.00707368,3373.3,3372.6,12.69684758]
[1721029401969,0.00707368,3373.3,3372.6,8.59866]
[1721029402168,0.00707368,3373.3,3372.6,5.9301]
[1721029402670,2.45685737,3372.7,3372.6,5.9301]
[1721029402881,2.70254311,3372.7,3372.6,5.9301]
[1721029403237,2.45685737,3372.7,3372.6,5.9301]
[1721029403438,0.03055737,3372.7,3372.6,5.9301]
[1721029403663,0.03055737,3372.7,3372.6,5.98939936]
[1721029404101,0.03055737,3372.7,3372.6,5.9301]
[1721029404242,0.03055737,3372.7,3372.6,5.98938758]
[1721029404451,0.03055737,3372.7,3372.6,6.75832634]
[1721029404771,0.03055737,3372.7,3372.6,12.09544634]
[1721029404973,0.00707368,3373.3,3373.2,1.7]
[1721029405173,0.00707368,3373.3,3373.2,7.68836972]
[1721029405390,0.00707368,3373.3,3373.2,7.6291]
[1721029405690,0.00707368,3373.3,3373.2,10.06718522]
[1721029406267,0.00707368,3373.3,3373.2,8.36718522]
[1721029406464,0.00707368,3373.3,3373.2,5.95916318]
[1721029407265,0.55707368,3373.3,3373.2,5.95916318]
[1721029408656,0.55707368,3373.3,3373.2,5.9291]
[1721029408857,0.00707368,3373.3,3373.2,5.9291]
[1721029409058,0.00707368,3373.3,3373.2,5.95813517]
[1721029410189,0.00707368,3373.3,3373.2,6.55394869]
[1721029411505,0.00707368,3373.3,3373.2,10.72202868]
[1721029411656,0.00707368,3373.3,3373.2,12.22202869]
[1721029411997,0.00707368,3373.3,3373.2,8.25394869]
[1721029412483,0.00707368,3373.3,3373.2,6.55394869]
[1721029412689,0.00707368,3373.3,3373.2,10.92202869]
[1721029413073,0.00707368,3373.3,3373.2,8.25394869]
[1721029413817,2.2902,3375.0,3373.2,8.25394869]
[1721029413818,2.2902,3375.0,3374.0,1.7]
[1721029413960,2.2902,3375.0,3374.0,7.7977]
[1721029414161,2.2902,3375.0,3374.0,7.82632636]
[1721029414756,2.33589152,3375.0,3374.0,7.82632636]
[1721029414965,3.447,3374.8,3374.0,5.95632636]
[1721029415162,0.04569152,3374.7,3374.0,5.95632636]
[1721029415445,6.27910855,3374.1,3374.0,5.95632636]
[1721029416228,9.82910855,3374.1,3374.0,5.95632636]
[1721029416431,9.82910855,3374.1,3374.0,5.9277]
[1721029416645,9.82910855,3374.1,3372.0,1.7]
[1721029416646,0.2975,3374.0,3372.0,1.7]
[1721029416849,2.3685,3373.6,3372.5,2.96]
[1721029417158,3.447,3373.4,3372.5,2.96]
[1721029417434,0.04569152,3373.3,3372.5,2.96]
[1721029417728,3.59569152,3373.3,3372.5,2.96]
[1721029417937,3.447,3372.9,3372.5,2.96]
[1721029418092,0.61607915,3372.9,3372.5,2.96]
[1721029418292,0.59569152,3372.8,3372.5,2.96]
[1721029418516,5.7881,3372.6,3370.9,1.50579968]
[1721029418726,5.7881,3372.6,3371.2,2.96]
[1721029418727,3.447,3372.1,3371.2,2.96]
[1721029418907,3.447,3372.1,3371.4,1.7]
[1721029419111,0.55,3372.0,3371.9,1.7]
[1721029420112,0.55,3372.0,3371.3,1.7]
[1721029420309,3.55,3372.2,3371.3,1.7]
[1721029420529,3.0,3372.1,3371.3,1.7]
[1721029420714,0.55,3372.0,3371.3,1.7]
[1721029421056,0.55,3372.2,3371.3,2.166]
[1721029421259,0.04569152,3372.1,3371.2,2.96]
[1721029421442,3.447,3372.0,3371.2,2.96]
[1721029421617,3.59569152,3371.9,3371.2,2.96]
[1721029422050,3.447,3371.5,3371.2,2.96]
[1721029422225,3.39039152,3371.4,3371.2,2.96]
[1721029422424,0.55,3371.3,3370.9,1.50579968]
[1721029422639,3.447,3371.0,3370.2,2.96901661]
[1721029422840,3.447,3370.5,3370.2,2.96901661]
[1721029423038,3.55,3370.4,3370.2,2.96901661]
[1721029424459,3.55,3370.4,3370.3,0.06619553]
[1721029424627,0.55,3370.4,3370.2,2.96901661]
[1721029425924,2.4425,3370.3,3370.2,2.96901661]
[1721029426126,6.29175,3370.3,3370.2,2.96901661]
[1721029427181,9.31785902,3370.3,3370.2,2.96901661]
[1721029427331,9.2721675,3370.3,3370.2,2.96901661]
[1721029428267,2.7525375,3370.3,3370.2,2.96901661]
[1721029428634,0.3100375,3370.3,3370.2,2.96901661]
[1721029429767,0.3100375,3370.3,3370.2,4.66901661]
[1721029429945,0.3100375,3370.3,3370.2,2.96901661]
[1721029432066,0.3100375,3370.3,3370.1,0.05933775]
[1721029432366,3.628,3371.7,3371.0,1.7]
[1721029432367,5.4450931,3371.6,3371.0,1.7]
[1721029432554,2.3776,3371.7,3371.0,1.7]
[1721029432753,0.30992275,3371.5,3371.0,1.7]
[1721029433158,0.04569152,3371.4,3370.2,39.7635847]
[1721029433356,0.30992275,3371.5,3370.4,1.7]
[1721029433357,0.35561427,3371.5,3370.4,1.7]
[1721029433571,0.30992275,3371.5,3370.8,1.7]
[1721029434737,0.04569152,3371.4,3370.3,2.28531311]
[1721029435750,0.59569152,3371.4,3370.3,2.28531311]
[1721029435959,0.59569152,3371.4,3370.3,1.7]
[1721029436477,0.59569152,3371.4,3370.0,30.0]
[1721029436478,0.55,3371.4,3370.7,1.7]
[1721029437688,0.30992275,3371.5,3370.7,1.7]
[1721029439074,0.55,3371.4,3370.7,1.7]
[1721029439642,0.55,3371.4,3371.2,1.7]
[1721029440037,0.55,3371.4,3370.8,1.7]
[1721029440273,0.55,3371.4,3370.8,1.87]
[1721029440494,0.55,3371.4,3370.8,0.17]
[1721029440649,0.55,3371.4,3370.4,1.7]
[1721029441544,0.59569152,3371.4,3370.4,1.7]
[1721029441803,0.59569152,3371.4,3370.0,31.7]
[1721029442190,3.628,3371.3,3370.0,30.06473628]
[1721029442408,1.04905295,3371.2,3370.0,34.77120991]
[1721029442724,1.04905295,3371.2,3370.0,30.06473628]
[1721029442725,2.2751,3371.1,3370.0,30.06473628]
[1721029443038,2.2751,3370.6,3370.0,30.06473628]
[1721029443178,0.04569152,3370.5,3370.0,30.06473628]
[1721029443380,3.628,3370.1,3370.0,30.06473628]
[1721029443678,9.3526,3370.1,3370.0,5.04409249]
[1721029443888,9.9026,3370.1,3368.3,1.7]
[1721029444114,9.9026,3370.1,3368.4,1.7]
[1721029444115,3.0,3370.0,3368.4,1.7]
[1721029444421,3.55,3370.0,3368.9,1.7]
[1721029444710,3.59569152,3370.0,3368.5,1.7]
[1721029444912,0.63202915,3369.9,3368.6,0.17]
[1721029445120,0.55,3369.8,3368.6,0.17]
[1721029445487,0.04569152,3369.7,3368.2,1.7]
[1721029446108,0.04569152,3369.7,3367.7,0.0593659]
[1721029446282,0.04569152,3369.7,3368.2,1.7]
[1721029446485,3.628,3369.5,3367.2,7.41]
[1721029446724,3.59569152,3369.4,3367.8,1.7]
[1721029446887,3.628,3368.9,3367.3,1.7]
[1721029447085,0.59569152,3368.8,3367.3,1.7]
[1721029447314,0.04569152,3368.7,3367.3,1.7]
[1721029448013,3.55,3368.8,3367.3,1.7]
[1721029448186,3.55,3368.8,3367.7,1.7]
[1721029448384,4.2678,3368.8,3367.7,1.87]
[1721029449011,4.2678,3368.8,3367.7,1.7]
[1721029449212,2.4552,3368.6,3367.3,1.7]
[1721029449428,2.4552,3368.6,3367.7,1.7]
[1721029449630,0.55,3368.5,3367.7,1.7]
[1721029449936,3.55,3368.5,3367.7,1.7]
[1721029450326,3.55,3368.5,3368.2,1.7]
[1721029450327,3.0,3368.5,3368.2,1.7]
[1721029450557,2.4552,3368.6,3368.2,1.7]
[1721029452539,0.55,3368.5,3368.2,1.7]
[1721029453180,0.55,3368.5,3367.8,1.7]
[1721029453308,0.31023121,3368.4,3367.8,1.7]
[1721029453509,0.55,3368.3,3367.8,1.7]
[1721029453842,0.55,3368.3,3367.8,1.887]
[1721029454815,0.04569152,3368.2,3367.3,1.7]
[1721029455017,0.55,3368.3,3367.3,1.7]
[1721029456431,0.55,3368.3,3367.7,1.7]
[1721029457234,0.55,3368.3,3367.3,1.7]
[1721029458059,0.55,3368.3,3367.4,0.05615977]
[1721029458266,0.31023121,3368.4,3367.9,1.7]
[1721029458814,1e-08,3368.4,3368.0,0.05937573]
[1721029459020,1e-08,3368.4,3368.0,0.11499846]
[1721029459323,2.4552,3368.6,3368.0,0.11499846]
[1721029459728,0.55,3368.5,3368.0,0.05562185]
[1721029459923,0.55,3368.5,3367.9,1.7]
[1721029460252,0.55,3368.5,3368.0,0.17]
[1721029460609,0.55,3368.5,3368.1,0.05553222]
[1721029461050,0.55,3368.5,3368.0,0.17]
[1721029461419,0.55,3368.5,3368.1,0.06478759]
[1721029461847,0.55,3368.5,3368.0,0.17]
[1721029462346,0.55,3368.5,3368.1,0.05553222]
[1721029462552,0.55,3368.5,3367.9,1.7]
[1721029462711,0.55,3368.5,3367.5,0.17561598]
[1721029462712,0.55,3368.5,3367.5,1.87561598]
[1721029462917,0.04569152,3368.4,3367.0,0.46548555]
[1721029463112,0.04569152,3368.4,3367.6,0.05598044]
[1721029463317,0.04569152,3368.4,3367.0,2.16548555]
[1721029463552,3.47437572,3368.5,3367.0,2.16548555]
[1721029463751,3.47437572,3368.5,3367.1,0.04984656]
[1721029464055,0.62396579,3368.4,3367.1,0.04984656]
[1721029465479,0.55,3368.3,3367.1,0.04984656]
[1721029468045,2.4445,3368.2,3367.1,0.04984656]
[1721029468240,2.4445,3368.2,3367.0,2.16548555]
[1721029468442,0.55,3368.1,3367.2,0.04433437]
[1721029468770,0.59945,3368.0,3367.0,1.7]
[1721029468934,0.55,3367.9,3367.0,2.16558055]
[1721029469136,0.55,3367.9,3367.1,0.04440413]
[1721029469866,0.55,3367.9,3367.0,0.46558055]
[1721029470044,2.4533,3367.8,3367.0,0.46558055]
[1721029470243,0.360275,3367.7,3367.0,0.46558055]
[1721029470449,3.360275,3367.7,3367.0,0.46558055]
[1721029470633,3.360275,3367.7,3366.2,1.7]
[1721029470971,3.360275,3367.7,3365.4,10.08427]
[1721029470972,2.4533,3367.6,3366.6,0.46568737]
[1721029471570,5.4533,3367.6,3366.6,0.46568737]
[1721029471770,0.9444575,3367.5,3366.6,0.46568737]
[1721029471936,3.9444575,3367.5,3366.6,0.46568737]
[1721029472637,2.4614,3367.4,3366.6,0.46568737]
[1721029472830,3.0114,3367.4,3366.6,0.46568737]
[1721029473033,3.0,3367.3,3366.6,0.46568737]
[1721029473267,3.0,3367.3,3365.8,1.7]
[1721029473268,1.24558575,3367.2,3365.8,1.7]
[1721029473470,0.69558575,3367.2,3366.1,0.46573888]
[1721029473969,0.69558575,3367.2,3365.8,1.7]
[1721029474273,0.69558575,3367.2,3366.1,0.46572419]
[1721029475442,2.4646,3367.1,3365.8,1.7]
[1721029475772,0.64696539,3367.0,3366.1,0.46573405]
[1721029476072,2.4646,3367.1,3366.2,1.7]
[1721029476244,5.4646,3367.1,3366.1,0.46573405]
[1721029476636,2.4646,3367.1,3365.6,1.7]
[1721029476838,2.4646,3367.1,3366.1,0.46575673]
[1721029477039,2.3851,3366.9,3366.1,0.46575673]
[1721029477369,0.29351,3366.8,3366.1,0.46575673]
[1721029477871,3.29351,3366.8,3366.1,0.46575673]
[1721029478170,3.29351,3366.8,3366.1,0.41575673]
[1721029478660,3.29351,3366.8,3365.6,1.7]
[1721029478967,3.29351,3366.8,3365.7,0.03418553]
[1721029479174,0.622861,3366.7,3365.7,0.03418553]
[1721029479960,0.622861,3366.7,3365.6,1.7]
[1721029480556,3.29351,3366.8,3365.6,1.7]
[1721029480751,3.29351,3366.8,3365.7,0.03418553]
[1721029480974,3.29351,3366.8,3365.6,1.7]
[1721029481191,3.29351,3366.8,3365.7,0.03418553]
[1721029481393,3.29351,3366.8,3365.6,1.7]
[1721029481590,0.919239,3366.7,3365.7,0.03418553]
[1721029482254,3.29351,3366.8,3365.7,0.03418553]
[1721029483099,3.0,3366.8,3365.7,0.03418553]
[1721029483459,2.43688003,3366.9,3365.7,0.03418553]
[1721029483791,2.3851,3366.9,3365.8,0.03430922]
[1721029484001,2.3851,3366.9,3365.6,1.87]
[1721029484002,2.69478278,3366.9,3365.6,1.87]
[1721029484160,3.0,3366.8,3365.7,0.03436158]
[1721029484364,0.56947828,3366.7,3365.6,1.87]
[1721029484789,0.56947828,3366.7,3365.7,0.03436158]
[1721029484960,0.56947828,3366.7,3365.6,1.7]
[1721029485162,0.56947828,3366.7,3365.7,0.03436158]
[1721029485163,2.2906,3366.6,3365.7,0.03436158]
[1721029485402,2.8406,3366.6,3365.0,0.46576722]
[1721029485561,2.2906,3366.4,3365.1,0.03200586]
[1721029485968,5.2906,3366.4,3365.1,0.03200586]
[1721029486204,5.2906,3366.4,3365.0,0.46576722]
[1721029486357,5.2906,3366.4,3365.1,0.02977085]
[1721029486559,5.2906,3366.4,3365.0,0.46576722]
[1721029486761,2.4512,3366.2,3365.1,0.03206091]
[1721029486996,5.4512,3366.2,3365.0,0.46576722]
[1721029487216,5.4512,3366.2,3365.1,0.03206091]
[1721029487361,5.4512,3366.2,3365.3,1.7]
[1721029487994,5.4512,3366.2,3365.4,0.03457554]
[1721029488207,2.4512,3366.2,3365.5,0.17345755]
[1721029488386,2.4512,3366.2,3365.6,0.03447081]
[1721029489059,2.4512,3366.2,3365.7,1.7]
[1721029489263,2.4512,3366.2,3365.6,0.03447081]
[1721029489508,2.4512,3366.2,3365.8,0.03436609]
[1721029489721,2.4512,3366.2,3365.7,0.03441845]
[1721029489876,2.4512,3366.2,3365.1,1.7]
[1721029490196,2.4512,3366.2,3365.5,1.7]
[1721029490401,2.4512,3366.2,3365.6,0.03447081]
[1721029494314,3.0,3366.7,3365.6,0.03447081]
[1721029494823,3.0,3366.7,3365.9,1.7]
[1721029496110,3.0,3366.7,3366.0,0.03439592]
[1721029496281,3.0,3366.7,3366.0,0.20783551]
[1721029497082,7.8759931,3366.8,3366.7,1.7]
[1721029497083,5.4450931,3366.8,3366.7,1.7]
[1721029497285,5.4450931,3367.4,3366.7,1.7]
[1721029497523,5.4450931,3367.4,3366.7,1.9039907]
[1721029497733,4.08085216,3368.7,3367.1,1.7]
[1721029497734,2.4361,3368.3,3367.1,1.7]
[1721029498084,2.4361,3368.3,3367.2,0.03372217]
[1721029498279,2.4361,3368.3,3367.1,1.7]
[1721029498499,0.24361,3368.2,3367.3,0.03366985]
[1721029498725,0.24361,3368.2,3367.2,0.03372217]
[1721029498941,0.24361,3368.2,3367.4,0.03667369]
[1721029499229,0.24361,3368.2,3367.5,0.03661663]
[1721029499832,0.24361,3368.2,3367.6,0.03655957]
[1721029500030,0.267971,3368.1,3367.6,0.03655957]
[1721029500240,0.267971,3368.1,3367.1,1.7]
[1721029500531,0.267971,3368.1,3367.7,0.03650252]
[1721029500826,0.267971,3368.1,3366.6,1.7]
[1721029500827,2.2671,3368.0,3366.6,1.7]
[1721029501025,0.5535071,3367.9,3366.6,1.87]
[1721029501211,2.2671,3367.9,3366.7,0.05560798]
[1721029501537,2.2671,3367.9,3366.3,1.7]
[1721029501538,1.57761385,3367.8,3366.3,1.7]
[1721029501739,1.71215817,3367.7,3366.3,1.7]
[1721029501886,0.68447138,3367.7,3366.4,0.05566912]
[1721029502252,0.68447138,3367.7,3366.7,1.7]
[1721029503091,0.68447138,3367.7,3367.1,1.7]
[1721029503735,0.68447138,3367.7,3366.7,1.7]
[1721029503900,0.59515714,3367.6,3366.7,1.7]
[1721029504512,0.59515714,3367.6,3366.6,1.7]
[1721029506137,2.4301,3367.5,3366.4,1.7]
[1721029506303,5.4301,3367.5,3366.4,1.7]
[1721029506519,0.60252571,3367.4,3366.4,1.7]
[1721029506718,3.60252571,3367.4,3366.4,1.7]
[1721029507030,3.60252571,3367.4,3366.3,1.7]
[1721029507238,3.60252571,3367.4,3366.8,1.7]
[1721029508492,3.0,3367.3,3366.8,1.7]
[1721029508692,0.60252571,3367.4,3366.8,1.7]
[1721029508693,3.60252571,3367.4,3366.8,1.7]
[1721029509231,0.60326257,3367.3,3366.8,1.7]
[1721029509608,0.60326257,3367.3,3365.8,6.28911278]
[1721029509609,0.60326257,3367.3,3365.8,3.61519278]
[1721029509961,0.60326257,3367.3,3366.4,1.7]
[1721029510315,3.0,3367.4,3366.8,1.7]
[1721029510621,2.4301,3367.5,3366.8,1.7]
[1721029520237,2.4301,3367.5,3366.6,1.7]
[1721029520582,2.4301,3367.5,3366.6,1.76482089]
[1721029522735,2.4301,3367.5,3366.6,1.74861567]
[1721029522942,0.54301,3367.4,3366.6,1.74861567]
[1721029524077,0.54301,3367.4,3366.6,0.04861567]
[1721029524237,4.6089273,3367.3,3365.8,1.7]
[1721029524444,0.6214542,3367.1,3365.8,1.7]
[1721029524639,2.50333816,3367.0,3365.8,1.7]
[1721029524836,4.0277731,3366.9,3365.8,1.7]
[1721029525075,4.0277731,3366.8,3365.8,1.7]
[1721029525266,3.3364731,3366.7,3365.8,1.7]
[1721029525464,4.02794178,3366.6,3365.8,1.7]
[1721029525689,0.6958096,3366.5,3365.8,1.7]
[1721029526886,0.6958096,3366.5,3365.4,1.7]
[1721029527880,2.2554,3366.4,3365.4,1.7]
[1721029528081,5.8768542,3366.4,3365.4,1.7]
[1721029528253,1.02807026,3366.3,3365.4,1.7]
[1721029528456,0.76007341,3366.2,3365.4,1.7]
[1721029528655,0.76007341,3366.2,3364.7,0.46584496]
[1721029528656,0.62154236,3366.0,3364.7,2.16584496]
[1721029528952,3.0,3366.0,3364.7,1.7]
[1721029529157,0.55,3365.9,3364.7,1.7]
[1721029530553,0.55,3365.9,3364.6,1.7]
[1721029530882,0.64269424,3365.8,3364.6,1.7]
[1721029531375,0.64269424,3365.8,3365.0,1.7]
[1721029531782,0.64269424,3365.8,3364.6,1.7]
[1721029532080,2.4571,3365.7,3364.2,0.46595073]
[1721029532282,5.4571,3365.7,3364.6,1.7]
[1721029532482,0.66497942,3365.6,3364.6,1.7]
[1721029532686,3.66497942,3365.6,3364.6,1.7]
[1721029533255,3.66497942,3365.6,3364.2,0.46595073]
[1721029533455,3.66497942,3365.6,3364.5,1.7]
[1721029533783,3.66497942,3365.6,3364.2,0.46595073]
[1721029533995,2.268,3365.4,3364.5,1.7]
[1721029534282,5.268,3365.4,3364.5,1.7]
[1721029535045,5.268,3365.4,3364.9,1.7]
[1721029535587,2.268,3365.4,3364.9,1.7]
[1721029536166,2.268,3365.4,3364.5,1.7]
[1721029536368,2.7948,3365.4,3364.5,1.7]
[1721029536681,2.268,3365.4,3364.5,1.7]
[1721029536884,2.268,3365.4,3364.9,1.7]
[1721029538877,2.268,3365.4,3364.5,1.7]
[1721029540773,2.268,3365.4,3364.9,1.7]
[1721029543870,2.268,3365.4,3364.4,1.7]
[1721029544075,2.7948,3365.4,3364.4,1.7]
[1721029545478,2.268,3365.4,3364.8,1.7]
[1721029546961,2.268,3365.4,3365.3,1.7]
[1721029548610,2.268,3365.4,3364.8,1.7]
[1721029550167,2.268,3365.4,3365.3,1.7]
[1721029556181,2.268,3365.4,3364.8,1.7]
[1721029556975,2.7948,3365.4,3364.8,1.7]
[1721029558815,4.57829509,3365.3,3364.4,1.7]
[1721029559121,1.02829509,3365.2,3364.4,1.7]
[1721029559291,1.02829509,3365.2,3364.1,0.46597406]
[1721029559292,2.4846,3365.1,3364.1,0.46597406]
[1721029559480,2.4846,3364.9,3364.1,2.16597406]
[1721029559684,1.02829509,3364.8,3364.1,2.16597406]
[1721029559871,4.02829509,3364.8,3364.1,1.7]
[1721029560098,0.65128951,3364.7,3364.1,1.7]
[1721029560578,3.0,3364.8,3364.1,1.7]
[1721029560826,2.4846,3364.9,3364.1,1.7]
[1721029561124,1.02846313,3364.8,3364.1,1.7]
[1721029561277,3.0,3364.8,3364.1,1.7]
[1721029561473,2.4846,3364.9,3364.1,1.7]
[1721029561700,2.3491,3364.7,3364.1,1.7]
[1721029561890,5.3491,3364.7,3364.1,1.7]
[1721029562790,1.02857849,3364.6,3364.1,1.7]
[1721029563122,3.0,3364.6,3364.1,1.7]
[1721029563305,2.3491,3364.7,3364.1,1.7]
[1721029563306,5.3491,3364.7,3364.1,1.7]
[1721029563513,1.139756,3364.6,3364.1,1.7]
[1721029563728,4.139756,3364.6,3363.7,1.7]
[1721029564240,4.139756,3364.6,3363.4,0.58451465]
[1721029564241,2.2633,3364.4,3363.4,0.58451465]
[1721029564378,2.2633,3364.4,3363.7,1.7]
[1721029564583,0.6403056,3364.3,3363.7,1.7]
[1721029564811,3.6403056,3364.3,3363.7,1.7]
[1721029565781,2.411,3364.2,3363.4,0.1184596]
[1721029565952,0.55,3364.1,3363.4,0.1184596]
[1721029566236,3.55,3364.1,3363.4,0.1184596]
[1721029566414,0.96013056,3364.0,3363.4,0.1184596]
[1721029567305,2.4644,3363.9,3363.4,0.1184596]
[1721029567509,5.4644,3363.9,3363.4,0.1184596]
[1721029573036,6.0853987,3364.3,3363.4,1.8184596]
[1721029573037,5.4450931,3364.3,3363.4,1.8184596]
[1721029573237,2.343,3364.6,3364.0,1.7]
[1721029573467,2.343,3364.6,3364.4,1.7]
[1721029573831,7.7334931,3365.1,3364.8,1.7]
[1721029574386,7.7334931,3365.6,3364.8,1.7]
[1721029574599,2.2884,3365.6,3364.8,1.7]
[1721029574890,2.51724,3365.6,3364.8,1.7]
[1721029575485,2.2884,3365.6,3364.8,1.7]
[1721029576134,2.2884,3365.6,3365.3,1.7]
[1721029576531,5.4450931,3366.0,3365.3,1.7]
[1721029577092,5.4450931,3366.0,3365.7,1.7]
[1721029577248,12.19,3366.6,3365.7,1.7]
[1721029577249,5.4450931,3366.5,3365.7,1.7]
[1721029577578,6.00963837,3366.5,3365.7,1.7]
[1721029578087,2.3124,3366.4,3365.0,1.7]
[1721029578396,2.3124,3366.4,3364.1,5.26925]
[1721029578548,2.3124,3366.4,3364.9,1.7]
[1721029578737,2.3245,3366.3,3364.9,1.7]
[1721029578939,2.3245,3366.1,3364.9,1.7]
[1721029579148,2.8745,3366.0,3364.9,1.7]
[1721029579354,3.0,3365.9,3364.9,1.7]
[1721029579584,2.3245,3366.0,3364.9,1.7]
[1721029580261,5.3245,3366.0,3364.9,1.7]
[1721029580444,1.03905003,3365.9,3364.9,1.7]
[1721029580645,4.03905003,3365.9,3364.9,1.7]
[1721029581062,0.55,3365.8,3364.9,1.7]
[1721029581633,4.03905003,3365.9,3364.9,1.7]
[1721029581834,2.3245,3366.0,3365.4,1.7]
[1721029582548,6.00963837,3366.5,3365.4,1.7]
[1721029582880,8.32983837,3366.5,3365.8,1.7]
[1721029583051,2.88474527,3366.5,3365.8,1.7]
[1721029583252,2.3202,3366.5,3365.8,1.7]
[1721029585390,2.3202,3366.5,3365.6,1.7]
[1721029588499,0.55,3366.4,3365.6,1.7]
[1721029588643,0.55,3366.4,3364.4,7.41]
[1721029588644,3.22348,3366.4,3365.2,1.7]
[1721029588848,5.08716,3366.3,3365.2,1.7]
[1721029589049,4.7757387,3366.2,3365.2,1.7]
[1721029589372,2.4281,3366.0,3364.7,1.7]
[1721029589572,2.67401,3365.8,3364.6,1.7]
[1721029589777,2.67409,3365.7,3364.4,1.7]
[1721029589953,3.0,3365.6,3364.4,1.7]
[1721029590159,1.415219,3365.5,3364.4,1.7]
[1721029590560,2.4281,3365.4,3364.3,1.7]
[1721029590806,5.10238,3365.4,3364.3,1.7]
[1721029591095,3.55,3365.3,3363.4,0.1184596]
[1721029591305,2.4281,3365.2,3363.7,1.7]
[1721029591603,1.4772607,3365.1,3363.8,0.54091989]
[1721029591755,4.4772607,3365.1,3363.8,0.05573529]
[1721029591951,4.4772607,3365.1,3363.9,1.7]
[1721029592171,4.4772607,3365.1,3363.9,1.74868975]
[1721029592394,2.2508,3365.0,3363.9,1.74868975]
[1721029592580,0.55,3364.9,3363.9,1.74868975]
[1721029592789,0.55,3364.9,3363.9,1.7]
[1721029592790,1.02780607,3364.8,3363.9,1.7]
[1721029592997,1.02780607,3364.8,3363.9,1.75564543]
[1721029593306,3.55,3364.9,3363.9,1.75564543]
[1721029595794,3.55,3364.9,3363.9,1.7]
[1721029596399,3.55,3364.9,3363.4,0.1184596]
[1721029596731,3.55,3364.9,3363.9,0.05564543]
[1721029597036,3.55,3364.9,3363.8,1.7]
[1721029597037,1.00229924,3364.8,3363.8,1.7]
[1721029597186,1.05411306,3364.8,3363.4,0.1184596]
[1721029597391,5.5005,3364.7,3363.6,1.7]
[1721029597612,3.0,3364.6,3363.6,1.7]
[1721029598134,0.55,3364.5,3363.7,0.04353351]
[1721029598320,0.85005,3364.4,3363.7,0.04353351]
[1721029598500,0.55,3364.3,3363.6,1.7]
[1721029599003,0.55,3364.3,3363.7,0.04353167]
[1721029599235,0.55,3364.3,3363.6,1.7]
[1721029599434,0.55,3364.3,3363.8,0.04346178]
[1721029599597,0.55,3364.3,3363.6,1.7]
[1721029599791,0.55,3364.3,3363.9,0.04339189]
[1721029600003,0.55,3364.3,3363.6,1.7]
[1721029600200,0.990005,3364.3,3363.6,1.7]
[1721029600399,2.3726,3364.2,3363.7,0.04353167]
[1721029600707,5.3726,3364.2,3363.4,0.1184596]
[1721029602386,8.04783,3364.2,3363.4,0.1184596]
[1721029602697,4.97529,3364.0,3363.4,0.1184596]
[1721029602898,1.111929,3363.9,3363.4,0.1184596]